Workbook

Sheet 開始
B1: 關於此範本
B2: 這個活動預算表活頁簿可用來追蹤活動所產生的支出和收入。
B3: 填入活動名稱，並在 [支出] 工作表和 [收入] 工作表中的表格中輸入相關詳細資料。
B4: 工作表會自動計算總支出和總收入。
B5: 損益摘要和圖表會於 [損益摘要] 工作表中自動更新。
B6: 附註：
B7: 我們已在每張工作表的 A 欄提供額外指示。此文字已刻意隱藏。若要移除文字，請選取欄 A，然後選取 [刪除]。
B8: 若要深入了解表格，請在表格內按 SHIFT 並按 F10，選取 [表格] 選項，然後選取 [替代文字]

Sheet 支出
A1: 在這個工作表中的個別表格中，輸入每個類別的預估支出和實際支出，然後在儲存格 D1 輸入活動名稱，以自訂這個工作表和其他工作表的標題。這個工作表的副標題在儲存格 H1。您可以在此欄的儲存格中找到有關此工作表的使用方式實用指示。下一個指示在儲存格 A3。 | B1: 活動預算表 | D1: 活動名稱 | H1: 支出
A3: [總支出] 標籤在右側的儲存格、[預估支出] 標籤在儲存格 G3，[實際支出] 標籤在儲存格 H3。 | B3: 總支出 | G3: 預估 | H3: 實際
A4: [總預估支出] 標籤在儲存格 G4，[總實際支出] 標籤在儲存格 H4，工作表會自動計算這兩項支出。下一個指示在儲存格 A6。 | G4: =SUM(C11,C19,C25,C32,G11,G19,G24) -> NT$882.00 | H4: =SUM(D11,D19,D25,D32,H11,H19,H24) -> NT$302.00
A6: 在從右側儲存格開始的表格中輸入場地相關支出，並在從儲存格 F6 開始的表格中輸入茶點相關支出。下一個指示在儲存格 A13。 | B6: 場地 | C6: 預估 | D6: 實際 | F6: 茶點 | G6: 預估 | H6: 實際
B7: 會議室和禮堂地費 | C7: NT$500.00 | F7: 食物
B8: 現場工作人員 | F8: 飲料 | G8: NT$20.00
B9: 設備 | F9: 桌巾 | H9: NT$20.00
B10: 桌椅 | F10: 工作人員和小費
B11: 合計 | C11: =SUBTOTAL(109,網站支出[預估]) -> NT$500.00 | D11: =SUBTOTAL(103,網站支出[實際]) -> NT$0.00 | F11: 合計 | G11: =SUBTOTAL(109,茶點支出[預估]) -> NT$20.00 | H11: =SUBTOTAL(103,茶點支出[實際]) -> NT$1.00
A13: 在從右側儲存格開始的表格中輸入佈置裝飾相關支出，並在從儲存格 F13 開始的表格中輸入節目相關支出。下一個指示在儲存格 A21。 | B13: 佈置裝飾 | C13: 預估 | D13: 實際 | F13: 節目 | G13: 預估 | H13: 實際
B14: 花飾 | C14: NT$200.00 | D14: NT$300.00 | F14: 表演者
B15: 蠟燭 | F15: 演講者 | G15: NT$30.00
B16: 燈光 | F16: 旅遊
B17: 氣球 | F17: 住宿費
B18: 紙類用品 | F18: 其他
B19: 合計 | C19: =SUBTOTAL(109,佈置裝飾支出[預估]) -> NT$200.00 | D19: =SUBTOTAL(109,佈置裝飾支出[實際]) -> NT$300.00 | F19: 合計 | G19: =SUBTOTAL(109,計劃支出[預估]) -> NT$30.00 | H19: =SUBTOTAL(103,計劃支出[實際]) -> NT$0.00
A21: 在從右側儲存格開始的表格中開始輸入宣傳相關支出，並在從儲存格 F21 開始的表格中輸入獎品相關支出。下一個指示在儲存格 A27。 | B21: 宣傳 | C21: 預估 | D21: 實際 | F21: 獎品 | G21: 預估 | H21: 實際
B22: 平面設計 | F22: 獎徽/獎牌/獎盃
B23: 影印/列印 | C23: NT$20.00 | F23: 禮物 | G23: NT$100.00
B24: 郵資 | F24: 合計 | G24: =SUBTOTAL(109,獎品支出[預估]) -> NT$100.00 | H24: =SUBTOTAL(103,獎品支出[實際]) -> NT$0.00
B25: 合計 | C25: =SUBTOTAL(109,公關支出[預估]) -> NT$20.00 | D25: =SUBTOTAL(103,公關支出[實際]) -> NT$0.00
A27: 在從右側儲存格開始的表格中輸入雜項支出。 | B27: 其他 | C27: 預估 | D27: 實際
B28: 電話 | D28: NT$13.00
B29: 交通 | C29: NT$12.00
B30: 文具用品
B31: 傳真服務
B32: 合計 | C32: =SUBTOTAL(109,雜項支出[預估]) -> NT$12.00 | D32: =SUBTOTAL(103,雜項支出[實際]) -> NT$1.00

Sheet 收入
A1: 在這個工作表的個別表格中輸入各類別的預估與實際收入。這個工作表的標題會自動在右側儲存格中更新。儲存格 G1 是副標題。您可以在此欄的儲存格中找到有關此工作表的使用方式實用指示。下一個指示在儲存格 A3。 | B1: =支出!B1 -> 活動預算表 | D1: =支出!D1 -> 活動名稱 | G1: 收入
A3: [總收入] 標籤在右側的儲存格、[預估收入] 標籤在儲存格 F3，[實際收入] 標籤在儲存格 G3。 | B3: 總收入 | F3: 預估 | G3: 實際
A4: 儲存格 F4 會自動計算總預估收入，儲存格 G4 會自動計算總實際收入。 | F4: =SUM(門票[[#Totals],[預估收入]],計劃中的廣告[[#Totals],[預估收入]],參展者和廠商[[#Totals],[預估收入]],物品銷售[[#Totals],[預估收入]]) -> NT$1,936.00 | G4: =SUM(門票[[#Totals],[實際收入]],計劃中的廣告[[#Totals],[實際收入]],參展者和廠商[[#Totals],[實際收入]],物品銷售[[#Totals],[實際收入]]) -> NT$1,831.00
A5: 右側儲存格是 [門票] 標籤。 | B5: 門票
A6: 在從右側儲存格開始的表格中輸入預估和實際的門票數和票價。工作表會自動計算門票帶來的預估和實際收入。下一個指示在儲存格 A11。 | B6: 預估數量 | C6: 實際數量 | D6: 類型 | E6: 價格 | F6: 預估收入 | G6: 實際收入
B7: 300 | C7: 278 | D7: 成人 @ | E7: NT$5.00 | F7: =B7*E7 -> NT$1,500.00 | G7: =C7*E7 -> NT$1,390.00
B8: 197 | C8: 195 | D8: 兒童 @ | E8: NT$2.00 | F8: =B8*E8 -> NT$394.00 | G8: =C8*E8 -> NT$390.00
B9: 42 | C9: 51 | D9: 其他 @ | E9: NT$1.00 | F9: =B9*E9 -> NT$42.00 | G9: =C9*E9 -> NT$51.00
B10: 合計 | F10: =SUBTOTAL(109,門票[預估收入]) -> NT$1,936.00 | G10: =SUBTOTAL(109,門票[實際收入]) -> NT$1,831.00
A11: 右側儲存格是 [節目廣告] 標籤。 | B11: 節目廣告
A12: 在從右側儲存格開始的表格中輸入預估和實際的節目廣告數和廣告費用。工作表會自動計算廣告帶來的預估和實際收入。下一個指示在儲存格 A17。 | B12: 預估數量 | C12: 實際數量 | D12: 類型 | E12: 價格 | F12: 預估收入 | G12: 實際收入
B13: 12 | D13: 封面 @ | F13: =B13*E13 -> NT$0.00 | G13: =C13*E13 -> NT$0.00
C14: 158 | D14: 半版 @ | F14: =B14*E14 -> NT$0.00 | G14: =C14*E14 -> NT$0.00
B15: 4 | D15: 1/4 版 @ | F15: =B15*E15 -> NT$0.00 | G15: =C15*E15 -> NT$0.00
B16: 合計 | F16: =SUBTOTAL(109,計劃中的廣告[預估收入]) -> NT$0.00 | G16: =SUBTOTAL(109,計劃中的廣告[實際收入]) -> NT$0.00
A17: 右側儲存格是參展商或廠商。 | B17: 參展商/廠商
A18: 在從右側儲存格開始的表格中輸入預估和實際的參展商和廠商數以及攤位費用。工作表會自動計算預估和實際收入。下一個指示在儲存格 A23。 | B18: 預估數量 | C18: 實際數量 | D18: 類型 | E18: 價格 | F18: 預估收入 | G18: 實際收入
B19: 23 | D19: 大型攤位 @ | F19: =B19*E19 -> NT$0.00 | G19: =C19*E19 -> NT$0.00
B20: 354 | D20: 中型攤位 @ | F20: =B20*E20 -> NT$0.00 | G20: =C20*E20 -> NT$0.00
B21: 56 | D21: 小型攤位 @ | F21: =B21*E21 -> NT$0.00 | G21: =C21*E21 -> NT$0.00
B22: 合計 | F22: =SUBTOTAL(109,參展者和廠商[預估收入]) -> NT$0.00 | G22: =SUBTOTAL(109,參展者和廠商[實際收入]) -> NT$0.00
A23: 右側儲存格是 [銷售項目] 標籤。 | B23: 銷售項目
A24: 在從右側儲存格開始的表格中輸入預估和實際售出的項目數和項目金額。工作表會自動計算預估和實際收入。 | B24: 預估數量 | C24: 實際數量 | D24: 類型 | E24: 價格 | F24: 預估收入 | G24: 實際收入
D25: 項目 @ | F25: =B25*E25 -> NT$0.00 | G25: =C25*E25 -> NT$0.00
B26: 123 | D26: 項目 @ | F26: =B26*E26 -> NT$0.00 | G26: =C26*E26 -> NT$0.00
D27: 項目 @ | F27: =B27*E27 -> NT$0.00 | G27: =C27*E27 -> NT$0.00
B28: 13 | D28: 項目 @ | F28: =B28*E28 -> NT$0.00 | G28: =C28*E28 -> NT$0.00
B29: 合計 | F29: =SUBTOTAL(109,物品銷售[預估收入]) -> NT$0.00 | G29: =SUBTOTAL(109,物品銷售[實際收入]) -> NT$0.00

Sheet 損益摘要
A1: 工作表會自動計算顯示總收入和總支出的 [損益摘要] 和 [圖表]。這個工作表的標題會自動在右側儲存格中更新。儲存格 G1 和 G2 是副標題。您可以在此欄的儲存格中找到有關此工作表的使用方式實用指示。下一個指示在儲存格 A3。 | B1: =支出!B1 -> 活動預算表 | D1: =支出!D1 -> 活動名稱 | G1: 收益
G2: 損失摘要
A3: 儲存格 E3 是比較預估收入/預估支出和實際收入/實際支出的橫條圖。 | E3: 這個儲存格是顯示預估收入/支出和實際收入/支出比較的橫條圖。
A4: 從右側儲存格開始的 [摘要] 表格會自動更新。下一個指示在儲存格 A8。 | B4: 總計 | C4: 預估 | D4: 實際
B5: 總收入 | C5: =收入!F10 -> NT$1,936.00 | D5: =收入!F4 -> NT$1,936.00
B6: 總支出 | C6: =支出!G4 -> NT$882.00 | D6: =支出!H4 -> NT$302.00
A8: 儲存格 C8 會自動計算預估總損益，儲存格 D8 會自動計算實際總損益。 | B8: 總收益 (或損失) | C8: =C5-C6 -> NT$1,054.00 | D8: =D5-D6 -> NT$1,634.00
